bitfinex-derivatives/quotes_SOLF0:USTF0_20250424
["timestamp","ask_amount","ask_price","bid_price","bid_amount"]
[1745494462667,6.8139,146.74,146.73,31.19821692]
[1745494463468,6.8139,146.74,146.73,24.44]
[1745494467169,6.8149,146.72,146.7,30.3017]
[1745494467371,6.75821692,146.75,146.7,30.3017]
[1745494467864,6.8146,146.73,146.7,37.1173]
[1745494476272,6.8146,146.73,146.71,6.8152]
[1745494477975,6.8148,146.72,146.7,37.1172]
[1745494478275,6.75821692,146.75,146.7,30.3017]
[1745494478674,6.8146,146.73,146.71,6.8153]
[1745494482784,6.8148,146.72,146.7,37.1173]
[1745494488188,6.8148,146.72,146.7,31.2556]
[1745494488985,6.8148,146.72,146.7,24.44]
[1745494489887,6.8153,146.71,146.7,24.44]
[1745494491790,6.8165,146.69,146.67,31.0969]
[1745494491992,6.75821692,146.69,146.67,24.28]
[1745494492290,6.8167,146.68,146.67,24.28]
[1745494493191,13.57461692,146.69,146.67,24.28]
[1745494494292,6.8167,146.68,146.67,24.28]
[1745494497192,6.8164,146.69,146.67,31.0972]
[1745494501701,6.75821692,146.72,146.67,31.03821692]
[1745494502699,6.75821692,146.72,146.68,6.8165]
[1745494503398,6.8161,146.7,146.68,6.8165]
[1745494503601,6.75821692,146.7,146.67,24.28]
[1745494503801,6.8167,146.68,146.67,24.28]
[1745494505400,6.816,146.7,146.68,6.8164]
[1745494505798,6.816,146.7,146.67,24.28]
[1745494506000,6.75821692,146.71,146.67,24.28]
[1745494507104,6.8159,146.7,146.67,31.0969]
[1745494507397,6.8159,146.7,146.67,24.28]
[1745494507598,6.75821692,146.74,146.69,6.75821692]
[1745494507803,6.75821692,146.75,146.7,6.8155]
[1745494508800,24.18,146.76,146.69,13.57421692]
[1745494509003,6.8154,146.71,146.69,6.816]
[1745494511002,6.8154,146.71,146.68,6.8165]
[1745494512000,6.8158,146.7,146.68,6.8165]
[1745494512197,6.75821692,146.71,146.67,24.28]
[1745494512403,6.75821692,146.69,146.67,24.28]
[1745494512604,6.8167,146.68,146.67,24.28]
[1745494513603,6.8165,146.69,146.67,24.28]
[1745494514003,6.75821692,146.7,146.67,24.28]
[1745494514410,6.8162,146.69,146.67,24.28]
[1745494515703,6.8167,146.68,146.67,24.28]
[1745494522910,6.75821692,146.7,146.67,24.28]
[1745494523109,6.8164,146.69,146.67,24.28]
[1745494523309,6.8164,146.69,146.67,31.0971]
[1745494524119,6.8164,146.69,146.67,24.28]
[1745494524817,6.8164,146.69,146.67,31.0971]
[1745494526311,6.8164,146.69,146.67,24.28]
[1745494527319,6.816,146.7,146.67,24.28]
[1745494528220,6.816,146.7,146.68,6.8165]
[1745494532524,6.8161,146.7,146.68,6.8167]
[1745494538330,6.8161,146.7,146.67,31.0969]
[1745494538829,6.8162,146.69,146.67,31.0969]
[1745494539034,6.75821692,146.7,146.67,24.28]
[1745494539330,6.8167,146.68,146.67,24.28]
[1745494540632,6.75821692,146.68,146.64,24.24]
[1745494541239,13.57511692,146.68,146.64,24.24]
[1745494541437,13.57511692,146.68,146.65,6.8178]
[1745494542642,6.75821692,146.68,146.65,6.8178]
[1745494543342,6.75821692,146.68,146.66,6.8175]
[1745494543941,13.57421692,146.7,146.67,6.8172]
[1745494544343,6.816,146.7,146.67,6.8172]
[1745494544644,6.816,146.7,146.65,6.75821692]
[1745494545241,6.816,146.7,146.67,6.8168]
[1745494545737,13.6266,146.76,146.67,6.75821692]
[1745494545941,6.75821692,146.72,146.67,6.75821692]
[1745494546142,6.75821692,146.72,146.68,24.24]
[1745494546341,13.57331692,146.72,146.69,6.8159]
[1745494547145,13.57331692,146.72,146.7,6.8158]
[1745494551746,6.75821692,146.74,146.69,6.75821692]
[1745494552045,6.75821692,146.76,146.69,6.75821692]
[1745494552246,13.57141692,146.76,146.73,6.8141]
[1745494554246,6.8132,146.76,146.73,6.8141]
[1745494554449,32.88871692,146.78,146.72,31.0547]
[1745494554748,6.75821692,146.76,146.72,31.0547]
[1745494554948,6.8137,146.75,146.72,31.0547]
[1745494556948,6.814,146.74,146.72,31.0547]
[1745494560749,6.8144,146.73,146.72,24.24]
[1745494560953,6.75821692,146.74,146.69,34.96441692]
[1745494561354,6.8146,146.73,146.7,6.8155]
[1745494561554,6.75821692,146.74,146.7,6.8155]
[1745494561856,6.8151,146.72,146.69,41.78031692]
[1745494562056,6.8151,146.72,146.69,34.96441692]
[1745494563351,6.8151,146.72,146.7,6.8156]
[1745494568858,6.75821692,146.74,146.69,31.056]
[1745494569052,6.75821692,146.74,146.69,37.81421692]
[1745494569252,6.75821692,146.74,146.69,30.99821692]
[1745494570257,6.8151,146.72,146.7,6.8157]
[1745494570859,6.8153,146.71,146.69,37.81431692]
[1745494571459,6.8149,146.72,146.7,6.8158]
[1745494572661,6.8145,146.73,146.7,6.8155]
[1745494574856,6.8149,146.72,146.7,6.8155]
[1745494575160,6.75821692,146.73,146.69,31.056]
[1745494575360,6.8156,146.71,146.69,24.24]
[1745494575861,6.8156,146.71,146.69,31.0562]
[1745494577761,6.8158,146.7,146.69,24.24]
[1745494579267,6.8155,146.71,146.69,24.24]
[1745494579667,6.75821692,146.73,146.69,24.24]
[1745494579967,6.8152,146.72,146.69,24.24]
[1745494580165,30.83821692,146.76,146.71,6.75821692]
[1745494580768,6.8148,146.73,146.71,6.75821692]
[1745494581964,6.8148,146.73,146.7,13.57351692]
[1745494584266,6.75821692,146.75,146.7,13.57351692]
[1745494584267,6.8149,146.72,146.7,13.57351692]
[1745494589870,6.8146,146.73,146.71,6.8153]
[1745494591170,6.8142,146.74,146.72,6.8148]
[1745494591372,6.8142,146.74,146.72,13.57301692]
[1745494591972,6.8142,146.74,146.71,13.57331692]
[1745494593472,6.8144,146.73,146.71,13.57331692]
[1745494593771,6.8144,146.73,146.71,6.8151]
[1745494596371,6.75821692,146.73,146.69,24.24]
[1745494596874,6.8154,146.71,146.69,31.056]
[1745494597468,6.8154,146.71,146.69,24.24]
[1745494598275,6.8154,146.71,146.69,31.0561]
[1745494598478,6.8154,146.71,146.69,24.24]
[1745494599074,6.8154,146.71,146.69,31.056]
[1745494599274,13.57331692,146.72,146.69,31.056]
[1745494601578,6.8151,146.72,146.69,37.81421692]
[1745494601874,6.75821692,146.74,146.69,37.81421692]
[1745494602081,6.8156,146.71,146.69,31.056]
[1745494602479,6.75821692,146.73,146.69,24.24]
[1745494602975,6.8155,146.71,146.69,31.0561]
[1745494603577,6.75821692,146.73,146.69,24.24]
[1745494604084,6.8156,146.71,146.69,24.24]
[1745494604282,6.75821692,146.73,146.69,24.24]
[1745494605181,6.8151,146.72,146.7,6.8156]
[1745494605883,6.8151,146.72,146.69,31.056]
[1745494606082,6.8153,146.71,146.69,31.056]
[1745494610489,6.815,146.72,146.7,6.8158]
[1745494611588,6.815,146.72,146.69,31.056]
[1745494612086,6.8154,146.71,146.69,31.056]
[1745494612689,6.8151,146.72,146.7,6.8158]
[1745494612889,6.75821692,146.75,146.7,6.75821692]
[1745494613184,6.8147,146.73,146.71,6.8153]
[1745494613485,6.8147,146.73,146.7,6.75821692]
[1745494614189,6.8147,146.73,146.7,13.57381692]
[1745494618992,6.8149,146.72,146.7,13.57381692]
[1745494621196,6.8149,146.72,146.7,6.75821692]
[1745494621394,6.8153,146.71,146.7,6.75821692]
[1745494621594,6.8153,146.71,146.69,31.056]
[1745494622696,6.8151,146.72,146.69,31.056]
[1745494622895,6.8151,146.72,146.7,6.8157]
[1745494623097,1.8905,146.78,146.7,6.75821692]
[1745494623299,6.8142,146.74,146.72,6.75821692]
[1745494625299,6.8142,146.74,146.72,13.57301692]
[1745494630303,6.8142,146.74,146.72,6.8148]
[1745494633908,6.8137,146.75,146.73,6.8144]
[1745494634703,6.8132,146.76,146.74,6.8139]
[1745494634910,6.75821692,146.77,146.73,6.75821692]
[1745494635509,6.8134,146.76,146.73,13.57231692]
[1745494637609,30.81821692,146.82,146.75,6.75821692]
[1745494637810,30.81821692,146.82,146.78,6.75821692]
[1745494638010,6.8111,146.81,146.78,13.57001692]
[1745494638306,6.75821692,146.82,146.78,13.57001692]
[1745494638811,6.75821692,146.82,146.79,6.8115]
[1745494639109,6.75821692,146.82,146.8,7.00621059]
[1745494639308,13.56861692,146.82,146.81,7.00621059]
[1745494640814,6.75821692,146.82,146.81,6.99929965]
[1745494641013,6.75821692,146.82,146.81,6.99985006]
[1745494641314,6.8118,146.79,146.77,24.06]
[1745494641514,13.57001692,146.79,146.78,6.99797726]
[1745494643112,6.8118,146.79,146.78,6.99797726]
[1745494644217,6.8118,146.79,146.78,6.9945719]
[1745494646118,6.8118,146.79,146.78,6.99338911]
[1745494647221,6.75821692,146.8,146.78,6.99338911]
[1745494647418,13.56941692,146.8,146.79,6.99338911]
[1745494647819,13.56941692,146.8,146.79,6.99182663]
[1745494648024,6.8112,146.8,146.79,6.99182663]
[1745494649627,6.8112,146.8,146.79,6.99081875]
[1745494649828,1.9724,146.84,146.79,6.99081875]
[1745494650027,6.75821692,146.82,146.8,6.99081875]
[1745494650225,6.75821692,146.82,146.81,6.99081875]
[1745494650427,13.56881692,146.82,146.81,6.99081875]
[1745494653129,6.8106,146.82,146.81,6.99081875]
[1745494655128,6.8106,146.82,146.81,6.98656994]
[1745494655429,6.75821692,146.84,146.81,6.98656994]
[1745494655628,30.81821692,146.85,146.82,6.98656994]
[1745494655827,30.81821692,146.85,146.81,6.75821692]
[1745494656027,6.8097,146.84,146.82,6.98586203]
[1745494656223,30.81821692,146.85,146.81,13.56861692]
[1745494656430,30.81821692,146.85,146.82,6.98515005]
[1745494656728,30.81821692,146.85,146.81,13.56861692]
[1745494656923,30.81821692,146.85,146.82,6.98516137]
[1745494657124,6.81,146.83,146.81,13.56861692]
[1745494657325,6.81,146.83,146.82,6.98445218]
[1745494659030,13.56821692,146.83,146.82,6.98445218]
[1745494659329,6.81,146.83,146.82,6.98445218]
[1745494661329,13.56821692,146.83,146.82,6.98445218]
[1745494661927,13.56821692,146.83,146.77,24.06]
[1745494662132,6.8118,146.79,146.78,6.98483581]
[1745494663232,6.8113,146.8,146.78,6.98483581]
[1745494663530,6.8113,146.8,146.79,6.98483581]
[1745494664333,6.8109,146.81,146.79,6.98483581]
[1745494664535,6.8109,146.81,146.8,6.98483581]
[1745494664836,6.75821692,146.82,146.8,6.98483581]
[1745494665035,6.75821692,146.82,146.81,6.98483581]
[1745494665036,6.8102,146.82,146.81,6.98483581]
[1745494667433,13.56841692,146.82,146.81,6.98483581]
[1745494676936,6.8102,146.82,146.81,6.98483581]
[1745494678238,6.8102,146.82,146.81,7.00584718]
[1745494678537,6.8099,146.83,146.81,7.00584718]
[1745494678736,6.8099,146.83,146.82,7.00584718]
[1745494680943,30.79821692,146.84,146.74,30.79821692]
[1745494681141,6.75821692,146.79,146.73,32.86151692]
[1745494681532,6.8128,146.77,146.73,32.86151692]
[1745494681736,6.8128,146.77,146.74,13.57191692]
[1745494682231,6.75821692,146.78,146.74,6.75821692]
[1745494682436,6.75821692,146.76,146.73,26.1033]
[1745494682842,6.8138,146.75,146.73,26.1033]
[1745494685846,6.8139,146.74,146.73,26.1033]
[1745494687236,13.57191692,146.75,146.73,26.1033]
[1745494687540,6.8137,146.75,146.73,26.1033]
[1745494687741,6.8137,146.75,146.73,32.9176]
[1745494691448,6.8139,146.74,146.73,26.1033]
[1745494691648,6.75821692,146.75,146.71,10.67621692]
[1745494691850,6.75821692,146.73,146.7,24.04]
[1745494692050,6.75821692,146.72,146.7,24.04]
[1745494692250,6.8153,146.71,146.68,6.8165]
[1745494693151,6.8153,146.71,146.69,6.8162]
[1745494693551,13.57331692,146.72,146.69,6.8162]
[1745494694052,13.57331692,146.72,146.7,6.8157]
[1745494694350,13.57281692,146.73,146.7,6.8157]
[1745494694552,6.75821692,146.73,146.7,6.8157]
[1745494694952,6.8149,146.72,146.7,6.8157]
[1745494695252,6.75821692,146.73,146.7,6.8157]
[1745494696351,13.57281692,146.73,146.7,6.8157]
[1745494698555,6.8149,146.72,146.69,13.57421692]
[1745494698854,6.75821692,146.74,146.69,13.57421692]
[1745494699355,6.8153,146.71,146.69,13.57421692]
[1745494700654,6.8158,146.7,146.68,6.8165]
[1745494701052,6.75821692,146.72,146.68,6.8165]
[1745494701555,6.8156,146.71,146.68,6.8165]
[1745494703657,6.75821692,146.72,146.68,6.8165]
[1745494703658,6.8158,146.7,146.68,6.8165]
[1745494714468,6.75821692,146.72,146.67,37.61511692]
[1745494715070,6.8163,146.69,146.67,37.61511692]
[1745494715677,6.816,146.7,146.68,6.8167]
[1745494716478,6.8162,146.69,146.67,37.61511692]
[1745494717577,6.816,146.7,146.68,6.8167]
[1745494718077,6.75821692,146.71,146.67,30.79821692]
[1745494718274,6.8165,146.69,146.67,37.61511692]
[1745494718977,6.8167,146.68,146.67,24.04]
[1745494721277,6.8159,146.7,146.67,24.04]
[1745494721477,6.8159,146.7,146.67,30.79821692]
[1745494721975,6.8159,146.7,146.68,6.8163]
[1745494722680,6.8159,146.7,146.67,30.79821692]
[1745494722681,6.8162,146.69,146.67,37.61511692]
[1745494726788,6.8162,146.69,146.67,30.79821692]
[1745494728891,6.8162,146.69,146.67,37.61521692]
[1745494734794,6.8167,146.68,146.67,24.04]
[1745494735096,6.75821692,146.69,146.65,8.79031692]
[1745494735494,6.8175,146.67,146.65,8.79031692]
[1745494736401,6.75821692,146.67,146.64,24.04]
[1745494737001,6.818,146.66,146.64,24.04]
[1745494738003,6.818,146.66,146.64,30.8585]
[1745494739703,6.8181,146.65,146.64,24.04]
[1745494739910,6.75821692,146.67,146.64,24.04]
[1745494740503,6.8178,146.66,146.64,30.8583]
[1745494741306,6.8173,146.67,146.65,6.8181]
[1745494741508,30.79821692,146.7,146.65,6.75821692]
[1745494742007,6.8169,146.68,146.66,6.8176]
[1745494744011,6.8165,146.69,146.67,6.8172]
[1745494744612,6.8167,146.68,146.66,6.8175]
[1745494746212,6.8167,146.68,146.65,13.57611692]
[1745494746412,6.8172,146.67,146.65,13.57611692]
[1745494746612,6.75821692,146.69,146.65,13.57611692]
[1745494747010,6.817,146.68,146.65,13.57611692]
[1745494747215,64.12080686,146.79,146.67,6.75821692]
[1745494747412,64.12080686,146.79,146.77,6.75821692]
[1745494747613,16.05643716,146.8,146.79,6.8116]
[1745494747813,72.68208595,146.84,146.79,30.79821692]
[1745494748020,40.062743,146.94,146.83,6.75821692]
[1745494748313,40.062743,146.94,146.79,30.86]
[1745494748314,6.818,146.93,146.85,6.75821692]
[1745494748517,6.818,146.93,146.88,6.75821692]
[1745494748816,216.7911257,146.89,146.88,30.8474]
[1745494749017,213.21654262,146.89,146.78,539.96]
[1745494749315,2.0249,146.88,146.79,30.96456368]
[1745494749518,2.0249,146.88,146.84,6.75821692]
[1745494749710,2.0249,146.88,146.83,25.12]
[1745494749910,2.0249,146.88,146.84,6.91334994]
[1745494750115,2.0249,146.88,146.81,33.16433764]
[1745494750418,6.75821692,146.84,146.82,6.9140445]
[1745494750619,6.75821692,146.83,146.81,8.04433764]
[1745494750818,6.8094,146.84,146.8,24.13301292]
[1745494751019,6.75821692,146.85,146.8,24.13301292]
[1745494751316,25.12,146.87,146.8,24.13301292]
[1745494751317,6.8107,146.81,146.8,24.13301292]
[1745494751516,25.12,146.83,146.77,7.98761108]
[1745494751717,21.11766588,146.79,146.73,49.45105065]
[1745494752021,10.55883294,146.75,146.7,96.71043998]
[1745494752215,10.55883294,146.73,146.7,96.71043998]
[1745494752720,539.72,146.82,146.7,96.71043998]
[1745494752917,10.55883294,146.73,146.7,96.71043998]
[1745494753114,10.55883294,146.71,146.68,1.9374]
[1745494753518,17.37233294,146.75,146.68,1.9374]
[1745494753721,10.55883294,146.73,146.68,1.9374]
[1745494753912,27.52,146.77,146.69,2.83441584]
[1745494754115,10.55883294,146.72,146.68,1.9374]
[1745494754420,10.55883294,146.76,146.68,1.9374]
[1745494754721,6.8144,146.73,146.68,1.9374]
[1745494755015,27.52,146.77,146.68,1.9374]
[1745494755216,6.8162,146.69,146.68,1.9374]
[1745494755423,6.8162,146.69,146.64,1.94]
[1745494756221,16.92519942,146.74,146.64,1.94]
[1745494756418,16.92519942,146.74,146.64,18.86519942]
[1745494756616,16.92519942,146.77,146.67,16.92519942]
[1745494756819,27.52,146.79,146.67,16.92519942]
[1745494756820,27.52,146.79,146.68,27.52]
[1745494757121,27.52,146.79,146.68,34.3366]
[1745494757319,16.92519942,146.77,146.69,2.0347]
[1745494757714,16.92519942,146.77,146.69,4.0023]
[1745494757921,16.92519942,146.77,146.7,9.73917439]
[1745494758121,6.8134,146.76,146.71,9.73917439]
[1745494758321,6.8134,146.76,146.72,6.90704925]
[1745494758622,556.64519942,146.82,146.73,9.73678604]
[1745494758817,556.64519942,146.82,146.74,6.9054071]
[1745494759020,6.8112,146.8,146.75,6.9054071]
[1745494759221,556.64519942,146.82,146.73,1.9458]
[1745494759523,6.8116,146.79,146.74,11.76920965]
[1745494759721,556.64519942,146.82,146.75,9.73450965]
[1745494760023,556.64519942,146.82,146.76,6.90389313]
[1745494760222,6.8114,146.8,146.74,2.0347]
[1745494760424,16.92519942,146.82,146.75,9.73390759]
[1745494760616,6.8102,146.82,146.76,16.54630944]
[1745494760815,27.52,146.83,146.77,6.90344054]
[1745494761016,27.52,146.83,146.74,2.0347]
[1745494761226,27.52,146.83,146.75,9.73142708]
[1745494761426,27.52,146.83,146.76,9.73132387]
[1745494761626,6.8103,146.82,146.77,6.90165135]
[1745494761927,6.8103,146.82,146.76,6.8127]
[1745494762226,6.8103,146.82,146.77,6.90075769]
[1745494762525,27.52,146.83,146.75,6.8134]
[1745494762727,16.92519942,146.82,146.76,6.89921403]
[1745494763026,6.8125,146.78,146.74,2.0347]
[1745494763223,44.44519942,146.79,146.73,1.9458]
[1745494763529,6.8126,146.77,146.72,27.52]
[1745494763829,44.44519942,146.79,146.73,6.90068216]
[1745494764128,6.8114,146.8,146.75,6.813]
[1745494764427,44.44519942,146.82,146.75,1.9249]
[1745494765129,6.8112,146.8,146.75,8.738]
[1745494765328,6.8112,146.8,146.75,1.9249]
[1745494765628,44.44519942,146.82,146.75,1.9249]
[1745494765928,6.8114,146.8,146.76,6.8127]
[1745494766229,6.8114,146.8,146.75,1.9249]
[1745494766529,6.8114,146.8,146.76,6.89860698]
[1745494766730,6.8114,146.8,146.75,1.9249]
[1745494766929,6.8114,146.8,146.76,6.89895632]
[1745494767129,6.8114,146.8,146.75,1.9249]
[1745494767330,44.44519942,146.85,146.76,34.41813707]
[1745494767634,539.8,146.89,146.77,6.89813707]
[1745494767635,44.44519942,146.88,146.77,6.89813707]
[1745494767831,6.8089,146.85,146.8,6.8108]
[1745494768226,6.8089,146.85,146.76,46.45399942]
[1745494768429,6.8089,146.85,146.77,6.89636613]
[1745494768636,6.8089,146.85,146.78,8.84736613]
[1745494768833,6.8089,146.85,146.79,6.89636613]
[1745494769129,6.8089,146.85,146.8,6.89636613]
[1745494769330,44.44519942,146.88,146.81,6.89636613]
[1745494769530,27.52,146.88,146.81,2.0387]
[1745494769730,6.8084,146.86,146.82,13.70254218]
[1745494769926,27.52,146.88,146.81,2.0387]
[1745494770131,27.52,146.88,146.82,6.89228977]
[1745494770332,27.52,146.88,146.81,2.0387]
[1745494770631,27.52,146.88,146.81,8.8492]
[1745494770831,44.44519942,146.88,146.81,8.8492]
[1745494771026,44.44519942,146.88,146.78,8.7629]
[1745494771234,44.44519942,146.88,146.79,6.89080851]
[1745494771532,6.81,146.83,146.78,1.951]
[1745494771737,27.52,146.84,146.77,2.0387]
[1745494772028,6.8117,146.79,146.77,2.0387]
[1745494772229,27.52,146.83,146.77,2.0387]
[1745494772633,6.8116,146.79,146.77,2.0387]
[1745494772932,27.52,146.83,146.77,2.0387]
[1745494773129,16.92519942,146.82,146.77,2.0387]
[1745494773330,27.52,146.83,146.7,27.52]
[1745494773634,16.92519942,146.76,146.71,6.89145964]
[1745494773836,16.92519942,146.76,146.69,1.9159]
[1745494774134,16.92519942,146.76,146.7,6.89411942]
[1745494774436,16.92519942,146.76,146.69,1.9159]
[1745494774636,16.92519942,146.76,146.7,70.64051266]
[1745494774833,16.92519942,146.76,146.7,63.7451381]
[1745494775835,6.8149,146.72,146.7,63.7451381]
[1745494776534,6.8146,146.73,146.7,63.7451381]
[1745494776736,16.92519942,146.76,146.7,63.7451381]
[1745494776929,16.92519942,146.76,146.68,3.8933]
[1745494777130,16.92519942,146.76,146.69,6.89649688]
[1745494777326,16.92519942,146.76,146.7,6.89605884]
[1745494777534,16.92519942,146.76,146.68,3.8933]
[1745494777731,6.8139,146.74,146.71,6.8151]
[1745494778536,6.8136,146.75,146.72,6.8148]
[1745494778835,16.92519942,146.79,146.71,28.72]
[1745494779033,6.8135,146.75,146.72,6.8148]
[1745494779232,16.92519942,146.79,146.71,28.72]
[1745494779434,28.72,146.8,146.72,6.89675504]
[1745494779628,6.8119,146.79,146.76,6.8129]
[1745494779825,45.64519942,146.83,146.76,6.8129]
[1745494780032,45.64519942,146.83,146.75,28.72]
[1745494780233,6.8124,146.78,146.75,35.5332]
[1745494780435,45.64519942,146.83,146.75,28.72]
[1745494780736,6.8121,146.78,146.75,35.5332]
[1745494780936,45.64519942,146.83,146.75,28.72]
[1745494781437,16.92519942,146.8,146.72,28.72]
[1745494781636,16.92519942,146.8,146.73,6.90116947]
[1745494781934,16.92519942,146.8,146.73,6.8141]
[1745494782336,16.92519942,146.8,146.74,6.8138]
[1745494782537,16.92519942,146.8,146.72,28.72]
[1745494782837,6.8129,146.77,146.73,13.71723044]
[1745494783035,6.8129,146.77,146.73,6.8141]
[1745494783537,6.813,146.76,146.72,28.72]
[1745494783837,16.92519942,146.8,146.72,28.72]
[1745494784137,6.8136,146.75,146.72,35.5348]
[1745494784437,16.92519942,146.77,146.72,28.72]
[1745494784632,6.8138,146.75,146.72,35.5346]
[1745494784838,16.92519942,146.77,146.72,35.5346]
[1745494785438,16.92519942,146.77,146.72,28.72]
[1745494785938,16.92519942,146.74,146.67,23.98120235]
[1745494786139,16.92519942,146.74,146.68,6.90989289]
[1745494786339,16.92519942,146.71,146.65,52.70120235]
[1745494787239,16.92519942,146.71,146.66,6.91067132]
[1745494787439,16.92519942,146.71,146.65,52.70120235]
[1745494787641,16.92519942,146.71,146.66,6.90935104]
[1745494787840,16.92519942,146.71,146.65,52.70120235]
[1745494788042,16.92519942,146.71,146.66,6.90925454]
[1745494788236,16.92519942,146.71,146.65,59.51910235]
[1745494788541,6.8167,146.69,146.66,6.90926116]
[1745494788743,16.92519942,146.71,146.65,35.5379]
[1745494788942,16.92519942,146.71,146.66,6.90940901]
[1745494789143,16.92519942,146.71,146.66,6.8176]
[1745494789440,16.92519942,146.71,146.65,28.72]
[1745494789643,6.8166,146.69,146.66,13.72703347]
[1745494789940,16.92519942,146.71,146.65,28.72]
[1745494790142,16.92519942,146.71,146.66,6.90943348]
[1745494790342,16.92519942,146.71,146.65,28.72]
[1745494790544,16.92519942,146.71,146.66,6.90943348]
[1745494790741,16.92519942,146.71,146.65,35.5378]
[1745494791042,16.92519942,146.71,146.66,6.90917219]
[1745494791244,6.816,146.7,146.67,6.817]
[1745494791742,6.8163,146.69,146.66,6.8174]
[1745494792145,16.92519942,146.74,146.65,28.72]
[1745494792445,6.8172,146.67,146.65,28.72]
[1745494792645,16.92519942,146.71,146.64,2.0843]
[1745494792846,45.66519942,146.71,146.64,2.0843]
[1745494793042,6.8179,146.66,146.64,2.0843]
[1745494793449,6.8179,146.66,146.65,6.91618811]
[1745494793850,6.8185,146.65,146.62,37.5743]
[1745494794050,6.8185,146.65,146.63,6.91491933]
[1745494794251,6.8178,146.66,146.64,6.91491933]
[1745494794450,6.8178,146.66,146.63,6.819]
[1745494794645,6.8178,146.66,146.64,6.92024268]
[1745494794842,6.8178,146.66,146.63,6.819]
[1745494795149,6.8178,146.66,146.64,6.92033466]
[1745494795349,6.8178,146.66,146.63,6.819]
[1745494795551,6.8178,146.66,146.64,6.9183294]
[1745494795752,6.8178,146.66,146.63,6.819]
[1745494796055,45.66519942,146.71,146.64,6.91935562]
[1745494796247,45.66519942,146.71,146.63,6.819]
[1745494796549,6.8175,146.67,146.64,13.73785562]
[1745494796749,6.8175,146.67,146.64,6.8185]
[1745494796950,45.66519942,146.71,146.64,6.8185]
[1745494797251,6.8176,146.66,146.63,6.8188]
[1745494797548,6.8176,146.66,146.64,6.91684188]
[1745494797851,6.8176,146.66,146.63,6.8188]
[1745494798047,6.8176,146.66,146.64,6.91510097]
[1745494798248,6.8173,146.67,146.64,6.8185]
[1745494798446,6.8173,146.67,146.62,30.7551]
[1745494798743,6.8166,146.69,146.63,6.91380547]
[1745494798946,6.8166,146.69,146.64,6.91380547]
[1745494799140,6.8166,146.69,146.65,6.91380547]
[1745494799450,6.8166,146.69,146.66,6.8173]
[1745494799750,45.66519942,146.74,146.62,30.7551]
[1745494800049,45.66519942,146.74,146.63,6.91298038]
[1745494800250,45.66519942,146.74,146.64,6.91298115]
[1745494800450,45.66519942,146.74,146.65,6.91298115]
[1745494800749,45.66519942,146.74,146.66,13.73028115]
[1745494801049,45.66519942,146.74,146.66,6.8173]
[1745494801251,6.8167,146.68,146.66,6.8173]
[1745494801451,45.66519942,146.74,146.67,6.8171]
[1745494801651,6.8157,146.71,146.68,6.91258998]
[1745494801844,6.8157,146.71,146.66,28.74]
[1745494801845,45.66519942,146.74,146.67,1.9439]
[1745494802253,6.8161,146.7,146.67,1.9439]
[1745494802454,45.66519942,146.74,146.67,1.9439]
[1745494802651,45.66519942,146.74,146.68,6.91290203]
[1745494802949,6.8156,146.71,146.67,1.9439]
[1745494803149,6.8156,146.71,146.68,13.72941896]
[1745494803347,6.8156,146.71,146.68,6.8167]
[1745494803549,6.8156,146.71,146.69,6.91247337]
[1745494803751,6.8156,146.71,146.69,6.8162]
[1745494804053,6.815,146.72,146.69,6.8162]
[1745494804354,28.74,146.74,146.69,6.8162]
[1745494804757,28.74,146.74,146.68,6.8165]
[1745494805055,6.8151,146.72,146.69,6.91292112]
[1745494805257,6.8151,146.72,146.67,1.9439]
[1745494805556,6.8151,146.72,146.69,6.8161]
[1745494805756,6.8155,146.71,146.67,1.9439]
[1745494805957,6.8155,146.71,146.68,13.73028295]
[1745494806157,6.8155,146.71,146.69,6.91378295]
[1745494806355,6.8155,146.71,146.67,1.9439]
[1745494806555,16.92519942,146.77,146.68,6.91454565]